bitfinex/quotes_SOLUSD_20250308
["timestamp","ask_amount","ask_price","bid_price","bid_amount"]
[1741474854529,21.69491832,137.66,137.63,0.033]
[1741474855317,21.66491832,137.65,137.63,0.033]
[1741474855515,21.66491832,137.64,137.63,0.033]
[1741474855714,90.31456718,137.64,137.63,0.033]
[1741474856828,97.57986718,137.64,137.63,0.033]
[1741474859329,97.57986718,137.64,137.63,0.0001]
[1741474859615,50.0,137.61,137.6,0.033]
[1741474859792,110.31456718,137.61,137.6,0.033]
[1741474861115,50.0,137.59,137.58,0.033]
[1741474861318,104.35906718,137.59,137.58,0.0001]
[1741474861612,50.0,137.56,137.55,0.033]
[1741474861811,78.93441832,137.56,137.55,0.033]
[1741474862228,97.58406718,137.56,137.55,0.033]
[1741474862602,97.58406718,137.56,137.53,0.033]
[1741474862603,70.0,137.54,137.53,0.033]
[1741474862917,116.73456718,137.54,137.53,0.033]
[1741474863327,130.03456718,137.54,137.53,0.033]
[1741474863717,137.30516718,137.54,137.53,0.033]
[1741474864302,115.64024886,137.54,137.53,0.033]
[1741474864503,137.30516718,137.54,137.53,0.033]
[1741474865524,66.73456718,137.54,137.53,0.033]
[1741474865717,6.42,137.54,137.53,0.033]
[1741474866310,21.66491832,137.57,137.53,0.033]
[1741474866518,34.96491832,137.58,137.53,0.033]
[1741474867327,21.66491832,137.58,137.53,21.69791832]
[1741474867718,21.66491832,137.58,137.54,7.2706]
[1741474869030,21.66491832,137.57,137.53,7.304]
[1741474870525,21.66491832,137.57,137.53,0.033]
[1741474874137,28.06491832,137.6,137.54,21.66491832]
[1741474874323,121.61456718,137.61,137.55,21.66491832]
[1741474875239,0.03,137.57,137.56,7.2695]
[1741474875435,0.03,137.57,137.56,36.88411832]
[1741474876020,21.66491832,137.64,137.56,55.05791832]
[1741474876243,21.66491832,137.64,137.59,21.66491832]
[1741474876621,121.61456718,137.65,137.59,21.66491832]
[1741474877825,121.61456718,137.65,137.6,7.2674]
[1741474878338,21.66491832,137.64,137.6,7.2674]
[1741474879643,21.69491832,137.66,137.61,21.66491832]
[1741474880139,0.03,137.66,137.61,21.66491832]
[1741474880637,0.03,137.66,137.62,23.25571832]
[1741474880936,0.03,137.66,137.63,21.66491832]
[1741474881728,0.03,137.66,137.64,28.93021832]
[1741474882031,0.03,137.66,137.65,21.66491832]
[1741474883844,0.03,137.66,137.65,28.92971832]
[1741474884237,0.03,137.7,137.69,20.0]
[1741474885245,0.03,137.7,137.69,41.66491832]
[1741474885834,0.03,137.7,137.69,48.92751832]
[1741474887341,0.03,137.7,137.67,21.66491832]
[1741474887539,0.03,137.7,137.69,20.0]
[1741474889255,0.03,137.7,137.66,29.38731832]
[1741474890238,0.03,137.7,137.67,21.66491832]
[1741474892855,0.03,137.7,137.68,21.66491832]
[1741474894351,0.03,137.7,137.68,28.92791832]
[1741474895435,0.03,137.7,137.69,21.66491832]
[1741474895850,0.03,137.7,137.69,28.92751832]
[1741474896258,0.03,137.7,137.69,21.66491832]
[1741474896440,0.03,137.7,137.69,41.66491832]
[1741474897661,0.03,137.72,137.69,41.66491832]
[1741474897662,0.03,137.72,137.71,20.0]
[1741474898161,0.03,137.72,137.71,41.66491832]
[1741474899743,0.01,137.75,137.74,20.14216157]
[1741474899958,0.01,137.75,137.74,88.52164707]
[1741474900460,0.01,137.75,137.74,66.85672875]
[1741474900833,0.01,137.75,137.74,55.32491832]
[1741474905844,0.01,137.75,137.74,48.92491832]
[1741474906043,0.01,137.75,137.74,41.66491832]
[1741474906866,0.01,137.75,137.72,21.66491832]
[1741474907072,0.01,137.75,137.7,21.66491832]
[1741474907367,21.67491832,137.75,137.69,21.66491832]
[1741474907547,28.93481832,137.75,137.69,21.66491832]
[1741474907748,28.93481832,137.75,137.69,28.92741832]
[1741474907956,28.93481832,137.75,137.69,21.66491832]
[1741474908370,28.93481832,137.75,137.7,21.66491832]
[1741474908563,7.2699,137.75,137.7,21.66491832]
[1741474908766,28.93481832,137.75,137.7,21.66491832]
[1741474908957,28.93481832,137.75,137.69,21.66491832]
[1741474909848,0.01,137.75,137.74,21.66491832]
[1741474910047,0.01,137.75,137.72,20.0]
[1741474910248,0.01,137.75,137.72,41.66491832]
[1741474910462,0.01,137.75,137.73,21.66491832]
[1741474911451,0.01,137.75,137.74,21.66491832]
[1741474911868,0.01,137.75,137.74,28.92491832]
[1741474912073,0.03,137.79,137.78,21.66491832]
[1741474912252,0.03,137.79,137.78,28.20491832]
[1741474913976,0.03,137.79,137.78,35.46281832]
[1741474915263,0.03,137.79,137.78,48.41658587]
[1741474915577,0.03,137.79,137.76,34.61868587]
[1741474915776,0.03,137.79,137.76,41.87748587]
[1741474916395,0.03,137.79,137.77,34.61868587]
[1741474917097,0.03,137.79,137.76,34.61868587]
[1741474918291,0.03,137.79,137.76,41.87758587]
[1741474918493,0.03,137.79,137.77,34.61868587]
[1741474918782,0.03,137.79,137.76,41.87758587]
[1741474919385,0.03,137.79,137.76,7.2589]
[1741474919563,0.03,137.79,137.76,41.87758587]
[1741474922298,0.03,137.79,137.75,34.61868587]
[1741474923493,34.61868587,137.82,137.75,34.61868587]
[1741474923789,34.61868587,137.82,137.74,41.87868587]
[1741474923790,34.61868587,137.8,137.74,41.87868587]
[1741474923998,68.64964886,137.81,137.74,7.26]
[1741474923999,34.61868587,137.79,137.74,7.26]
[1741474926503,1.615,137.79,137.74,41.87868587]
[1741474927069,1.615,137.79,137.75,34.61868587]
[1741474927294,81.3,137.81,137.76,34.61868587]
[1741474928291,81.3,137.81,137.77,7.2584]
[1741474928498,41.11868587,137.82,137.77,7.2584]
[1741474929685,34.61868587,137.82,137.77,7.2584]
[1741474929884,8.1916,137.83,137.79,34.61868587]
[1741474930197,8.1916,137.83,137.78,34.61868587]
[1741474930388,60.55323473,137.84,137.77,7.2584]
[1741474930389,0.03,137.84,137.79,34.61868587]
[1741474930799,0.03,137.84,137.81,34.61868587]
[1741474931097,0.03,137.84,137.82,34.61868587]
[1741474931287,0.03,137.84,137.81,34.61868587]
[1741474931988,0.03,137.84,137.82,7.2558]
[1741474932985,0.03,137.84,137.83,34.61868587]
[1741474934280,0.03,137.84,137.83,41.87398587]
[1741474934894,0.03,137.84,137.83,78.05897174]
[1741474935209,0.03,137.84,137.83,41.87398587]
[1741474936005,0.0001,137.84,137.83,95.28448217]
[1741474936205,0.0001,137.84,137.83,41.87398587]
[1741474936498,0.0001,137.84,137.82,34.61868587]
[1741474937182,0.0001,137.84,137.83,34.61868587]
[1741474937388,0.0001,137.84,137.83,41.618755]
[1741474938301,0.0001,137.84,137.76,21.618755]
[1741474938506,21.618755,137.83,137.78,21.618755]
[1741474938676,0.0001,137.84,137.8,21.618755]
[1741474938997,0.0001,137.84,137.83,21.618755]
[1741474939184,0.0001,137.84,137.8,26.62]
[1741474939385,0.0001,137.84,137.83,21.618755]
[1741474940386,0.0001,137.84,137.83,50.63497157]
[1741474940590,0.0001,137.84,137.83,69.28462043]
[1741474941382,0.0001,137.84,137.83,71.28459626]
[1741474941596,0.03,137.89,137.88,21.618755]
[1741474942582,0.03,137.89,137.88,28.871355]
[1741474942881,0.03,137.89,137.87,20.0]
[1741474943385,0.03,137.89,137.87,48.871655]
[1741474943590,0.03,137.89,137.88,21.618755]
[1741474944619,0.03,137.89,137.88,28.871355]
[1741474945384,0.03,137.89,137.87,27.2531]
[1741474945693,0.03,137.89,137.87,48.871855]
[1741474946402,0.03,137.89,137.87,41.618755]
[1741474946591,0.03,137.89,137.87,20.0]
[1741474946791,0.03,137.89,137.87,41.618755]
[1741474946987,0.03,137.89,137.87,21.618755]
[1741474947195,21.618755,137.88,137.83,0.033]
[1741474947398,21.618755,137.88,137.83,28.906855]
[1741474947603,0.03,137.89,137.84,21.618755]
[1741474948099,21.648755,137.89,137.84,21.618755]
[1741474949008,21.648755,137.89,137.83,7.2881]
[1741474949314,21.648755,137.89,137.83,28.906855]
[1741474949612,21.618755,137.86,137.83,0.033]
[1741474950604,28.872655,137.86,137.83,0.033]
[1741474951105,21.618755,137.86,137.83,0.033]
[1741474951282,21.618755,137.84,137.83,0.033]
[1741474951481,46.53810386,137.84,137.83,0.033]
[1741474951709,50.0,137.82,137.74,28.878455]
[1741474951893,21.618755,137.8,137.74,28.878455]
[1741474952092,21.618755,137.79,137.74,28.878455]
[1741474952497,21.618755,137.8,137.74,28.878455]
[1741474952694,21.618755,137.79,137.74,28.878455]
[1741474953407,34.64292844,137.79,137.74,34.64292844]
[1741474953605,34.64292844,137.79,137.74,41.90292844]
[1741474953912,7.9097,137.84,137.78,34.64292844]
[1741474954208,34.64292844,137.81,137.74,25.4101]
[1741474954412,34.64292844,137.81,137.77,20.0]
[1741474954588,34.64292844,137.82,137.77,20.0]
[1741474954992,34.64292844,137.82,137.78,7.2579]
[1741474955592,53.2925773,137.83,137.78,7.2579]
[1741474955798,123.85262844,137.84,137.79,34.64292844]
[1741474956002,42.55262844,137.84,137.79,34.64292844]
[1741474956291,7.9097,137.84,137.79,34.64292844]
[1741474957007,7.9097,137.84,137.8,7.2568]
[1741474957207,6.2697,137.84,137.8,7.2568]
[1741474958606,6.2697,137.84,137.79,7.2572]
[1741474958607,40.91262844,137.84,137.79,7.2572]
[1741474958915,34.64292844,137.83,137.78,7.2579]
[1741474959302,34.64292844,137.83,137.78,41.90082844]
[1741474959813,6.2997,137.84,137.79,34.64292844]
[1741474960130,0.03,137.84,137.8,34.64292844]
[1741474960721,0.03,137.84,137.79,34.64292844]
[1741474962217,0.03,137.84,137.8,34.64292844]
[1741474962399,0.03,137.84,137.81,34.64292844]
[1741474963934,0.03,137.84,137.82,34.64292844]
[1741474964105,0.03,137.84,137.83,54.64292844]
[1741474965126,0.03,137.84,137.76,49.23852844]
[1741474965437,34.64292844,137.81,137.75,41.93502844]
[1741474965801,34.64292844,137.8,137.75,7.2921]
[1741474966703,6.7,137.82,137.76,34.64292844]
[1741474966907,6.7,137.82,137.78,34.64292844]
[1741474967102,1.5385,137.84,137.78,34.64292844]
[1741474967307,1.5385,137.84,137.79,34.64292844]
[1741474967718,1.5385,137.84,137.8,34.64292844]
[1741474967923,0.03,137.84,137.8,34.64292844]
[1741474968126,0.03,137.84,137.81,34.64292844]
[1741474968507,0.03,137.84,137.82,7.2558]
[1741474970031,0.03,137.84,137.82,41.89872844]
[1741474970917,0.03,137.84,137.83,34.64292844]
[1741474971635,0.03,137.84,137.83,41.89822844]
[1741474973418,0.03,137.84,137.83,76.54115688]
[1741474973820,0.03,137.84,137.83,41.89822844]
[1741474975913,0.03,137.84,137.83,7.2553]
[1741474976336,0.03,137.84,137.82,34.64292844]
[1741474976634,34.17292844,137.87,137.82,34.64292844]
[1741474976844,34.64292844,137.85,137.8,20.0]
[1741474977138,34.64292844,137.85,137.8,27.2568]
[1741474977332,41.89682844,137.86,137.8,61.89972844]
[1741474977639,34.64292844,137.85,137.8,20.0]
[1741474978817,34.64292844,137.83,137.77,34.64292844]
[1741474979034,34.64292844,137.81,137.75,34.67592844]
[1741474979212,41.89952844,137.81,137.75,41.93532844]
[1741474979813,34.64292844,137.8,137.75,34.67592844]
[1741474980213,41.89952844,137.81,137.75,34.67592844]
[1741474981449,34.64292844,137.79,137.75,0.033]
[1741474981633,34.64292844,137.78,137.75,0.033]
[1741474984041,91.90072844,137.79,137.75,0.033]
[1741474984336,18.64964886,137.82,137.75,34.67592844]
[1741474984518,53.2925773,137.82,137.76,34.64292844]
[1741474984721,87.8914,137.83,137.77,34.64292844]
[1741474984920,122.53432844,137.83,137.78,34.64292844]
[1741474985739,36.23942844,137.85,137.8,34.64292844]
[1741474985943,91.23432844,137.87,137.81,34.64292844]
[1741474986169,34.64292844,137.86,137.81,41.89882844]
[1741474986334,34.64292844,137.84,137.79,41.90032844]
[1741474987042,34.64292844,137.84,137.79,7.2574]
[1741474987343,34.64292844,137.83,137.79,7.2574]
[1741474987543,34.64292844,137.83,137.77,34.64292844]
[1741474987845,34.64292844,137.82,137.78,7.2577]
[1741474988743,34.64292844,137.83,137.78,7.2577]
[1741474988939,53.2925773,137.86,137.8,34.64292844]
[1741474989241,53.2925773,137.86,137.81,34.64292844]
[1741474990047,122.53432844,137.87,137.81,34.64292844]
[1741474990542,41.23432844,137.87,137.81,34.64292844]
[1741474990731,34.64292844,137.88,137.82,34.64292844]
[1741474991122,34.64292844,137.88,137.83,41.89822844]
[1741474991416,34.64292844,137.88,137.83,7.2553]
[1741474991821,115.97292844,137.89,137.83,41.89822844]
[1741474993149,81.33,137.89,137.84,34.64292844]
[1741474993535,0.03,137.87,137.84,34.64292844]
[1741474994434,0.03,137.87,137.85,7.2542]
[1741474995249,0.03,137.87,137.85,41.89712844]
[1741474995823,34.64292844,137.86,137.81,34.64292844]
[1741474997145,34.67292844,137.87,137.81,34.64292844]
[1741474997348,0.03,137.87,137.82,41.89872844]
[1741474997951,34.64292844,137.86,137.8,41.89972844]
[1741474998160,34.64292844,137.85,137.8,7.2568]
[1741474998328,34.64292844,137.85,137.8,41.89972844]
[1741474998728,34.64292844,137.86,137.8,41.89972844]
[1741474999146,34.64292844,137.86,137.81,34.64292844]
[1741474999348,34.64292844,137.86,137.78,24.8047]
[1741474999349,34.64292844,137.85,137.79,7.2574]
[1741474999549,34.64292844,137.85,137.79,41.90032844]
[1741474999748,34.64292844,137.86,137.8,34.64292844]
[1741475000855,34.64292844,137.86,137.81,7.2563]
[1741475005237,21.63082395,137.86,137.81,7.2563]
[1741475006233,21.63082395,137.86,137.81,7.2893]
[1741475007160,21.63082395,137.85,137.81,7.2893]
[1741475008267,21.63082395,137.85,137.81,0.033]
[1741475010959,28.88462395,137.86,137.81,0.033]
[1741475013853,0.03,137.87,137.82,21.63082395]
[1741475014972,21.66082395,137.87,137.82,7.2558]
[1741475016564,0.03,137.87,137.82,28.88662395]
[1741475020162,21.63082395,137.84,137.81,0.033]
[1741475020361,21.63082395,137.82,137.81,0.033]
[1741475020866,28.88662395,137.82,137.81,0.033]
[1741475022175,25.90544886,137.82,137.81,0.033]
[1741475022377,40.28047281,137.82,137.81,0.033]
[1741475023862,76.2701,137.85,137.81,0.033]
[1741475024070,18.64964886,137.83,137.81,0.033]
[1741475025178,40.28047281,137.83,137.81,0.033]
[1741475025356,21.63082395,137.83,137.81,0.033]
[1741475025560,21.63082395,137.82,137.81,0.033]
[1741475026268,40.28047281,137.82,137.81,0.033]
[1741475028267,47.53627281,137.82,137.81,0.033]
[1741475031285,40.28047281,137.82,137.81,0.033]
[1741475042105,47.53627281,137.82,137.81,0.033]
[1741475042611,47.53627281,137.82,137.75,0.033]
[1741475042612,50.0,137.78,137.75,0.033]
[1741475042804,21.63082395,137.76,137.75,0.033]
[1741475043102,90.28047281,137.76,137.75,0.033]
[1741475043786,97.53947281,137.76,137.75,0.033]
[1741475044299,119.17029676,137.76,137.75,0.033]
[1741475044481,119.17029676,137.76,137.69,0.033]
[1741475044482,50.0,137.71,137.69,0.033]
[1741475044689,21.63082395,137.7,137.69,0.033]
[1741475045188,40.28047281,137.72,137.69,0.033]
[1741475045398,18.64964886,137.72,137.69,0.033]
[1741475045704,40.28047281,137.72,137.69,0.033]
[1741475047396,76.52,137.73,137.69,0.033]
[1741475047599,88.5598,137.75,137.7,21.63082395]
[1741475047600,81.3,137.75,137.7,21.63082395]
[1741475047900,102.93082395,137.77,137.72,21.63082395]
[1741475048093,102.93082395,137.77,137.71,21.63082395]
[1741475048892,21.63082395,137.76,137.71,21.63082395]
[1741475049402,21.63082395,137.76,137.7,28.17172395]
[1741475049997,21.63082395,137.76,137.71,7.2616]
[1741475050298,152.93082395,137.77,137.71,28.89242395]
[1741475050604,102.93082395,137.77,137.71,28.89242395]
[1741475051107,21.63082395,137.76,137.71,7.2616]
[1741475055007,21.63082395,137.74,137.69,0.033]
[1741475055211,131.3,137.73,137.71,0.033]
[1741475055894,99.94964886,137.72,137.71,0.033]
[1741475056086,18.64964886,137.72,137.71,0.033]
[1741475056287,40.28047281,137.72,137.71,0.033]
[1741475056507,53.58047281,137.72,137.71,0.033]
[1741475057015,60.84157281,137.72,137.71,0.033]
[1741475058393,31.94964886,137.72,137.71,0.033]
[1741475058594,53.58047281,137.72,137.71,0.033]
[1741475060016,60.84157281,137.72,137.71,0.033]
[1741475061511,21.63082395,137.72,137.71,0.033]
[1741475061701,7.2601,137.74,137.71,0.033]
[1741475061702,50.0,137.77,137.71,21.66382395]
[1741475061907,71.63082395,137.77,137.71,21.66382395]
[1741475062097,21.63082395,137.76,137.71,0.033]
[1741475062413,21.63082395,137.74,137.71,0.033]
[1741475062601,21.63082395,137.73,137.71,0.033]
[1741475065216,121.58047281,137.72,137.71,0.033]
[1741475067222,128.84157281,137.72,137.71,0.033]
[1741475068819,47.54157281,137.72,137.71,0.033]
[1741475070316,21.63082395,137.72,137.71,0.033]
[1741475070618,71.63082395,137.73,137.71,0.033]
[1741475074124,152.93082395,137.73,137.71,0.033]
[1741475075306,21.63082395,137.72,137.71,0.033]
[1741475075913,152.93082395,137.73,137.71,0.033]
[1741475079712,21.63082395,137.72,137.71,0.033]
[1741475080114,152.93082395,137.73,137.71,0.033]
[1741475081720,21.63082395,137.72,137.71,0.033]
[1741475084730,0.03,137.75,137.71,0.033]
[1741475085440,21.66082395,137.75,137.71,0.033]
[1741475089237,13.89676394,137.75,137.71,0.033]
[1741475091340,0.03,137.75,137.71,13.89976394]
[1741475091522,0.03,137.75,137.72,15.52426394]
[1741475092823,0.03,137.75,137.73,7.2605]
[1741475098143,13.89676394,137.75,137.72,1.6575]
[1741475098333,13.86676394,137.74,137.71,0.033]
[1741475098738,13.86676394,137.73,137.71,0.033]
[1741475099052,13.86676394,137.72,137.71,0.033]
[1741475100640,21.12786394,137.72,137.71,0.033]
[1741475100946,39.7775128,137.72,137.71,0.033]
[1741475101327,13.86676394,137.72,137.71,0.033]
[1741475101548,13.3,137.73,137.71,0.033]
[1741475102351,13.86676394,137.72,137.71,0.033]
[1741475103225,32.5164128,137.72,137.71,0.033]
[1741475104227,39.7775128,137.72,137.71,0.033]
[1741475105264,47.59351891,137.72,137.71,0.033]
[1741475105747,84.98277005,137.73,137.71,0.033]
[1741475105960,21.68277005,137.72,137.71,0.033]
[1741475106258,40.33241891,137.72,137.71,0.033]
[1741475107760,47.59351891,137.72,137.71,0.033]
[1741475113238,18.64964886,137.72,137.71,0.033]
[1741475113433,47.59351891,137.72,137.71,0.033]
[1741475113640,70.0,137.7,137.69,0.033]
[1741475113869,50.0,137.65,137.64,0.033]
[1741475114139,50.0,137.65,137.56,0.033]
[1741475114140,70.0,137.59,137.56,0.033]
[1741475114360,50.0,137.57,137.56,0.033]
[1741475114540,6.46,137.6,137.56,0.033]
[1741475114748,7.2659,137.63,137.56,0.033]
[1741475114749,50.0,137.63,137.56,0.033]
[1741475114948,50.0,137.61,137.57,21.68277005]
[1741475115146,21.68277005,137.6,137.56,0.033]
[1741475115348,50.0,137.57,137.56,0.033]
[1741475115547,71.68277005,137.57,137.56,0.033]
[1741475115846,50.0,137.65,137.56,0.033]
[1741475116058,71.68277005,137.65,137.6,21.68277005]
[1741475116267,71.68277005,137.65,137.6,28.94967005]
[1741475116444,176.04964886,137.66,137.6,28.94967005]
[1741475116445,179.08277005,137.66,137.6,30.60317005]
[1741475116656,50.0,137.67,137.62,21.68277005]
[1741475117052,50.0,137.67,137.6,27.089]
[1741475117053,21.68277005,137.66,137.61,21.68277005]
[1741475117368,50.0,137.61,137.56,0.033]
[1741475117568,21.68277005,137.57,137.56,0.033]
[1741475117743,137.88,137.6,137.56,0.033]
[1741475118150,131.3,137.64,137.57,21.68277005]
[1741475118374,152.98277005,137.64,137.58,21.68277005]
[1741475118546,21.68277005,137.61,137.58,1.6535]
[1741475118870,50.0,137.62,137.56,21.71577005]
[1741475118871,71.68277005,137.59,137.56,0.033]
[1741475119169,68.64964886,137.57,137.56,0.033]
[1741475119871,68.64964886,137.57,137.55,0.033]
[1741475119872,50.0,137.53,137.44,7.2757]
[1741475120074,28.30277005,137.54,137.49,21.68277005]
[1741475120255,50.0,137.57,137.51,21.68277005]
[1741475120256,21.68277005,137.56,137.51,21.68277005]
[1741475120449,21.68277005,137.57,137.52,21.68277005]
[1741475120647,81.3,137.57,137.51,20.0]
[1741475120848,81.3,137.61,137.51,20.0]
[1741475121063,102.98277005,137.61,137.56,21.68277005]
[1741475121275,81.3,137.61,137.57,21.68277005]
[1741475121680,102.98277005,137.61,137.56,21.68277005]
[1741475121990,71.68277005,137.6,137.54,29.87127005]
[1741475122194,21.68277005,137.59,137.54,29.87127005]
[1741475122466,18.64964886,137.66,137.58,21.68277005]
[1741475122682,21.68277005,137.63,137.58,41.68277005]
[1741475122854,21.68277005,137.62,137.58,20.0]
[1741475123576,50.0,137.65,137.59,21.68277005]
[1741475123577,71.68277005,137.65,137.59,21.68277005]
[1741475124856,71.68277005,137.65,137.57,41.68277005]
[1741475124857,21.68277005,137.62,137.57,41.68277005]
[1741475125169,21.68277005,137.61,137.55,21.68277005]
[1741475125475,71.68277005,137.61,137.55,21.68277005]
[1741475125876,6.68,137.62,137.57,21.68277005]
[1741475126484,6.68,137.62,137.56,7.2691]
[1741475126655,28.36277005,137.62,137.57,21.68277005]
[1741475126855,6.68,137.62,137.57,21.68277005]
[1741475127055,13.3,137.63,137.58,21.68277005]
[1741475127263,21.68277005,137.64,137.58,21.68277005]
[1741475127775,0.03,137.63,137.58,21.68277005]
[1741475128066,0.03,137.63,137.59,20.0]
[1741475128277,0.03,137.63,137.62,21.68277005]
[1741475128459,21.71277005,137.63,137.58,28.36277005]
[1741475128658,21.71277005,137.63,137.58,28.95117005]
[1741475128867,0.03,137.63,137.58,7.2684]
[1741475129173,0.03,137.63,137.58,25.4396]
[1741475129371,0.03,137.63,137.62,21.68277005]
[1741475129557,0.03,137.63,137.56,7.3024]
[1741475129765,21.71277005,137.63,137.58,21.68277005]
[1741475129974,0.03,137.63,137.59,21.68277005]
[1741475130177,0.03,137.63,137.61,21.68277005]
[1741475130348,0.03,137.63,137.56,0.033]
[1741475130555,0.03,137.63,137.58,20.0]
[1741475130754,21.68277005,137.6,137.56,0.033]
[1741475131559,56.75,137.63,137.56,21.71577005]
[1741475131560,21.68277005,137.61,137.56,21.71577005]
[1741475132077,21.68277005,137.62,137.56,21.71577005]
[1741475132775,0.03,137.63,137.58,21.68277005]
[1741475133165,21.68277005,137.62,137.57,21.68277005]
[1741475133363,21.68277005,137.6,137.56,0.033]
[1741475134584,21.68277005,137.62,137.57,21.68277005]
[1741475134778,21.71277005,137.63,137.57,21.68277005]
[1741475135072,28.97867005,137.63,137.57,21.68277005]
[1741475135280,21.71277005,137.63,137.58,21.68277005]
[1741475135458,28.97867005,137.63,137.58,21.68277005]
[1741475135871,21.68277005,137.61,137.56,0.033]
[1741475136780,7.2674,137.6,137.56,0.033]
[1741475137074,21.68277005,137.59,137.56,0.033]
[1741475137280,21.68277005,137.57,137.56,0.033]
[1741475138072,21.68277005,137.58,137.56,0.033]
[1741475138272,21.68277005,137.59,137.56,0.033]
[1741475138974,130.26977005,137.61,137.56,0.033]
[1741475139177,21.68277005,137.57,137.56,0.033]
[1741475142453,7.268,137.59,137.56,0.033]
[1741475142454,102.98277005,137.59,137.56,0.033]
[1741475142659,81.3,137.59,137.56,0.033]
[1741475143382,81.3,137.59,137.56,7.3025]
[1741475144678,81.3,137.59,137.56,28.98527005]
[1741475145291,102.98277005,137.59,137.56,0.033]
[1741475145497,21.68277005,137.58,137.56,0.033]
[1741475146565,28.95137005,137.58,137.56,0.033]
[1741475147356,21.68277005,137.57,137.56,0.033]
[1741475149488,166.95137005,137.58,137.56,0.033]
[1741475149671,81.3,137.58,137.56,0.033]
[1741475149883,88.5685,137.58,137.56,0.033]
[1741475150185,110.25127005,137.58,137.56,0.033]
[1741475151076,102.98277005,137.58,137.56,0.033]
[1741475151274,6.68,137.61,137.56,0.033]
[1741475151464,21.68277005,137.6,137.56,0.033]
[1741475152484,0.03,137.59,137.56,0.033]
[1741475153381,21.68277005,137.58,137.56,0.033]
[1741475153583,21.68277005,137.57,137.56,0.033]
[1741475153975,102.98277005,137.58,137.56,0.033]
[1741475154761,21.71277005,137.59,137.56,0.033]
[1741475154968,0.03,137.59,137.56,0.033]
[1741475156381,21.71277005,137.59,137.56,0.033]
[1741475158992,28.98087005,137.59,137.56,0.033]
[1741475159295,21.68277005,137.57,137.56,0.033]
[1741475161170,81.3,137.58,137.56,0.033]
[1741475162085,0.03,137.59,137.56,0.033]
[1741475162482,0.03,137.59,137.56,21.71577005]
[1741475162689,0.03,137.59,137.57,23.21687005]
[1741475163279,0.03,137.59,137.58,41.68277005]
[1741475163880,0.0001,137.59,137.58,60.33241891]
[1741475164185,0.03,137.62,137.58,60.33241891]
[1741475164387,0.03,137.62,137.61,21.68277005]
[1741475164691,0.03,137.62,137.61,28.94967005]
[1741475170383,0.0001,137.62,137.61,28.94967005]
[1741475171207,0.0001,137.63,137.62,1.64356157]
[1741475171385,0.0001,137.63,137.62,69.74395053]
[1741475171591,81.33,137.73,137.65,20.0]
[1741475171802,81.33,137.73,137.68,21.68277005]
[1741475172193,103.01277005,137.73,137.68,21.68277005]
[1741475173406,103.01277005,137.73,137.68,28.94547005]
[1741475173609,81.33,137.73,137.68,28.94547005]
[1741475175108,0.03,137.73,137.68,28.94547005]
[1741475175306,0.03,137.73,137.69,21.68277005]
[1741475176711,0.03,137.73,137.7,21.68277005]
[1741475177104,0.03,137.73,137.69,28.94537005]
[1741475178616,0.03,137.73,137.64,18.1627]
[1741475178916,21.68277005,137.72,137.69,20.0]
[1741475179096,21.68277005,137.72,137.66,21.68277005]
[1741475180217,81.33,137.73,137.68,41.68277005]
[1741475180605,21.68277005,137.71,137.68,20.0]
[1741475180811,21.68277005,137.7,137.65,21.68277005]
[1741475181012,21.68277005,137.7,137.67,20.0]
[1741475181214,28.30277005,137.72,137.67,21.68277005]
[1741475181404,6.62,137.72,137.67,41.68277005]
[1741475182922,6.62,137.72,137.68,7.2632]
[1741475183218,81.33,137.73,137.71,20.0]
[1741475183394,0.03,137.73,137.72,21.68277005]